fUST/lending_fUST_20241206
["ID","MTS","AMOUNT","RATE_DAILY","PERIOD"]
[344419549,1733439039313,-151.0,0.00030727,7]
[344419550,1733439039324,-151.0,0.00030727,7]
[344419551,1733439039334,-151.0,0.00030727,7]
[344419552,1733439039345,-231.758335,0.00030727,7]
[344419553,1733439039355,-52575.36876151,0.00030732,2]
[344419554,1733439039365,-171.52230487,0.00030732,2]
[344419555,1733439039378,-805206.2926836,0.00030733,10]
[344419556,1733439039394,-419.00226844,0.00030733,10]
[344419557,1733439039406,-4303.02343828,0.00030733,10]
[344419558,1733439039417,-312.17656232,0.00030733,30]
[344419559,1733439039430,-636.16988028,0.00030733,30]
[344419560,1733439039453,-152.212,0.00030402,2]
[344419561,1733439039464,-1051.6535574,0.00030733,30]
[344419562,1733439039475,-8425.62541975,0.00030733,10]
[344419563,1733439039489,-1075.5743532,0.00030733,10]
[344419564,1733439039506,-500.0,0.00030498,7]
[344419565,1733439039516,-5720.9112847,0.00030733,10]
[344419566,1733439039527,-5403.70187283,0.00030733,10]
[344419567,1733439039539,-18885.6353,0.00030733,10]
[344419579,1733439040412,-144090.63456932,0.00030733,10]
[344419580,1733439040488,-144227.0,0.00030733,10]
[344419581,1733439040502,-18896.61560478,0.00030733,10]
[344419582,1733439040515,-4782.0499,0.00030733,10]
[344419583,1733439040563,-380.58,0.00030733,10]
[344419585,1733439040578,-1130.0,0.00030733,10]
[344419646,1733439043914,-25085.64036901,0.00030733,10]
[344419647,1733439043928,-6891.81014523,0.00030733,10]
[344419648,1733439043942,-7199.38651261,0.00030733,10]
[344419649,1733439043955,-6980.6840779,0.00030733,10]
[344419650,1733439043983,-38747.69329498,0.00030733,10]
[344419681,1733439046645,-306102.23687127,0.00030733,10]
[344419683,1733439046658,-4588.89262224,0.00030733,10]
[344419685,1733439046671,-3771.29999998,0.00030733,10]
[344419703,1733439400614,-898.90696381,0.00024703,10]
[344419704,1733439400636,-401.80043502,0.00025312,4]
[344419705,1733439400669,-3470.67637933,0.00025412,3]
[344419706,1733439400694,-300.0,0.00025508,2]
[344419707,1733439400716,-300.0,0.00025508,2]
[344419708,1733439400739,-25426.61622184,0.00025508,2]
[344419718,1733439801502,-159.2,0.0003,31]
[344419719,1733439801532,-159.2,0.000303,31]
[344419720,1733439801570,-159.2,0.000303,31]
[344419721,1733439801595,-159.2,0.000305,31]
[344419722,1733439801621,-159.2,0.000305,31]
[344419723,1733439801643,-228.0,0.0003064,30]
[344419724,1733439801665,-500.0,0.000307,34]
[344419725,1733439801731,-152.7470604,0.0003074,30]
[344419726,1733439801753,-153.0,0.0003074,30]
[344419727,1733439801774,-153.0,0.0003074,30]
[344419728,1733439801798,-765.0,0.0003074,30]
[344419729,1733439801819,-153.0,0.0003074,30]
[344419730,1733439801839,-152.7470604,0.0003074,30]
[344419731,1733439801861,-153.0,0.0003074,30]
[344419732,1733439801888,-153.0,0.0003074,30]
[344419733,1733439801917,-153.0,0.0003074,30]
[344419734,1733439801943,-152.7470604,0.0003074,30]
[344419735,1733439801968,-152.7470604,0.0003074,30]
[344419736,1733439801994,-1008.74,0.000308,30]
[344419737,1733439802024,-3014.49,0.000308,30]
[344419738,1733439802054,-159.2,0.000308,31]
[344419739,1733439802083,-159.2,0.000308,31]
[344419740,1733439802112,-159.2,0.00031,31]
[344419741,1733439802141,-159.2,0.00031,31]
[344419742,1733439802172,-159.2,0.00031,31]
[344419743,1733439802197,-4760.26269676,0.0003105,120]
[344419744,1733439802222,-500.0,0.0003105,30]
[344419745,1733439802249,-500.0,0.0003105,30]
[344419746,1733439802273,-500.0,0.0003105,30]
[344419747,1733439802299,-283.41723707,0.0003105,30]
[344419748,1733439802326,-1000.0,0.00031506,30]
[344419749,1733439802351,-1054.55483641,0.00031506,30]
[344419750,1733439802377,-15921.6428315,0.000316,120]
[344419751,1733439802402,-156.19722815,0.000316,120]
[344419752,1733439802430,-200.0,0.00032,120]
[344419753,1733439802455,-150.0,0.00032494,120]
[344419754,1733439802478,-168.81026875,0.000325,120]
[344419755,1733439802502,-1008.74,0.000327,30]
[344419756,1733439802524,-3014.49,0.000328,30]
[344419757,1733439802550,-1500.0,0.000329,60]
[344419758,1733439802572,-1538.0,0.000329,30]
[344419759,1733439802596,-5375.87632731,0.00033,30]
[344419760,1733439802733,-1000.0,0.00033,120]
[344419761,1733439802758,-300.0,0.00033,120]
[344419762,1733439802783,-151.0,0.00033151,120]
[344419763,1733439802811,-200.0,0.00034,120]
[344419764,1733439802839,-151.0,0.00034274,120]
[344419765,1733439802864,-157.093,0.0003465,120]
[344419766,1733439802887,-127.59619479,0.00035,120]
[344419767,1733439802958,-1258.74,0.00033,30]
[344419768,1733439803019,-114.40380521,0.00035,120]
[344419769,1733439803166,-99.81490672,0.00035,120]
[344419770,1733439803272,-900.18509328,0.00035,120]
[344419771,1733439803294,-2099.81490672,0.00035,120]
[344419772,1733439803350,-25900.18509328,0.00035,120]
[344419773,1733439803373,-157.094,0.0003585,120]
[344419774,1733439803396,-209.0,0.00036,120]
[344419775,1733439803418,-151.0,0.00036301,120]
[344419776,1733439803439,-500.0,0.00037,120]
[344419777,1733439803461,-1000.0,0.00037,120]
[344419778,1733439803483,-157.191,0.0003705,120]
[344419779,1733439803505,-500.0,0.00037705,120]
[344419780,1733439803526,-500.0,0.00037705,120]
[344419781,1733439803550,-500.0,0.00037705,120]
[344419782,1733439803571,-500.0,0.00037705,120]
[344419783,1733439803593,-500.0,0.00037705,120]
[344419784,1733439803613,-500.0,0.00037705,120]
[344419785,1733439803635,-500.0,0.00037705,120]
[344419786,1733439803656,-800.0,0.00037705,120]
[344419787,1733439803687,-500.44188,0.00037705,120]
[344419788,1733439803709,-800.0,0.00037705,120]
[344419789,1733439803732,-800.0,0.00037705,120]
[344419790,1733439803755,-800.0,0.00037705,120]
[344419791,1733439803777,-500.0,0.00037705,120]
[344419792,1733439803800,-800.0,0.00037705,120]
[344419793,1733439803821,-500.0,0.00037705,120]
[344419794,1733439803843,-800.0,0.00037705,120]
[344419795,1733439803867,-800.0,0.00037705,120]
[344419796,1733439803887,-800.0,0.00037705,120]
[344419797,1733439803909,-800.0,0.00037705,120]
[344419798,1733439803931,-800.0,0.00037705,120]
[344419799,1733439803955,-499.3,0.00037705,120]
[344419800,1733439803980,-800.0,0.00037705,120]
[344419801,1733439804009,-800.0,0.00037705,120]
[344419802,1733439804037,-800.0,0.00037705,120]
[344419803,1733439804065,-800.0,0.00037705,120]
[344419804,1733439804090,-500.0,0.00037705,120]
[344419805,1733439804114,-500.0,0.00037705,120]
[344419806,1733439804136,-78.05342578,0.00037705,120]
[344419807,1733439804226,-93365.38367269,0.00033,30]
[344419808,1733439804248,-697.81139981,0.00034,30]
[344419809,1733439804270,-500.0,0.00034,30]
[344419810,1733439804292,-500.0,0.00034,30]
[344419811,1733439804316,-500.0,0.00034,30]
[344419812,1733439804338,-500.0,0.00034,30]
[344419813,1733439804360,-856.05706961,0.00034,30]
[344419814,1733439804380,-500.0,0.00034,30]
[344419815,1733439804400,-701.73233902,0.00034,30]
[344419816,1733439804422,-800.0,0.00034,30]
[344419817,1733439804442,-800.0,0.00034,30]
[344419818,1733439804463,-855.22737809,0.00034,30]
[344419819,1733439804484,-800.0,0.00034,30]
[344419820,1733439804504,-800.0,0.00034,30]
[344419821,1733439804525,-800.0,0.00034,30]
[344419822,1733439804545,-800.0,0.00034,30]
[344419823,1733439804568,-800.0,0.00034,30]
[344419824,1733439804589,-800.0,0.00034,30]
[344419825,1733439804609,-800.0,0.00034,30]
[344419826,1733439804630,-800.0,0.00034,30]
[344419827,1733439804655,-500.0,0.00034,30]
[344419828,1733439804676,-800.0,0.00034,30]
[344419829,1733439804697,-800.0,0.00034,30]
[344419830,1733439804719,-1369.01278005,0.00034,30]
[344419831,1733439804741,-500.27489692,0.00034,30]
[344419832,1733439804765,-500.0,0.00034,30]
[344419833,1733439804786,-500.0,0.00034,30]
[344419834,1733439804809,-681.48055851,0.00034,30]
[344419835,1733439804830,-1700.0,0.00034,30]
[344419836,1733439804852,-1700.0,0.00034,30]
[344419837,1733439804874,-1700.0,0.00034,30]
[344419838,1733439804896,-1700.0,0.00034,30]
[344419839,1733439804917,-1700.0,0.00034,30]
[344419840,1733439804938,-1700.0,0.00034,30]
[344419841,1733439804960,-1700.0,0.00034,30]
[344419842,1733439804981,-1700.0,0.00034,30]
[344419843,1733439805008,-1700.0,0.00034,30]
[344419844,1733439805031,-1700.0,0.00034,30]
[344419845,1733439805054,-1700.0,0.00034,30]
[344419846,1733439805079,-1700.0,0.00034,30]
[344419847,1733439805101,-1700.0,0.00034,30]
[344419848,1733439805122,-3132.68068854,0.00034,30]
[344419849,1733439805144,-250.932557,0.00034,30]
[344419850,1733439805166,-1193.7016303,0.00035,90]
[344419851,1733439805187,-3837.72629,0.00035,30]
[344419852,1733439805214,-3153.12710241,0.00035,30]
[344419853,1733439805236,-500.0,0.00035616,30]
[344419854,1733439805257,-500.0,0.00035616,30]
[344419855,1733439805277,-500.0,0.00035616,30]
[344419856,1733439805306,-500.0,0.00035616,30]
[344419857,1733439805327,-500.0,0.00035616,30]
[344419858,1733439805347,-500.0,0.00035616,30]
[344419859,1733439805367,-259.66670172,0.00035616,30]
[344419860,1733439805389,-1008.74,0.00036,30]
[344419861,1733439805412,-250.0,0.00036,30]
[344419862,1733439805434,-3014.49,0.000364,30]
[344419863,1733439805457,-456.5968626,0.00036876,30]
[344419864,1733439805479,-469.8182561,0.00036876,30]
[344419865,1733439805500,-111.94657422,0.00037705,120]
[344419866,1733439805524,-500.0,0.00037705,120]
[344419867,1733439805545,-500.0,0.00037705,120]
[344419868,1733439805576,-500.0,0.00037705,120]
[344419869,1733439805597,-500.0,0.00037705,120]
[344419870,1733439805619,-500.0,0.00037705,120]
[344419871,1733439805641,-500.0,0.00037705,120]
[344419872,1733439805663,-500.0,0.00037705,120]
[344419873,1733439805686,-163.22351906,0.00037705,120]
[344419874,1733439805708,-1700.0,0.00037705,120]
[344419875,1733439805730,-1700.0,0.00037705,120]
[344419876,1733439805751,-1700.0,0.00037705,120]
[344419877,1733439805865,-1700.0,0.00037705,120]
[344419878,1733439805889,-1700.0,0.00037705,120]
[344419879,1733439805912,-1700.0,0.00037705,120]
[344419880,1733439805933,-1700.0,0.00037705,120]
[344419881,1733439805955,-1700.0,0.00037705,120]
[344419882,1733439805977,-1700.0,0.00037705,120]
[344419883,1733439806001,-1700.0,0.00037705,120]
[344419884,1733439806023,-1700.0,0.00037705,120]
[344419885,1733439806044,-1700.0,0.00037705,120]
[344419886,1733439806074,-1700.0,0.00037705,120]
[344419887,1733439806096,-1700.0,0.00037705,120]
[344419888,1733439806117,-499.3,0.00037705,120]
[344419889,1733439806140,-500.0,0.00038,120]
[344419890,1733439806161,-250.0,0.00038,30]
[344419891,1733439806182,-508.2304605,0.000382,109]
[344419892,1733439806203,-508.23046046,0.000382,109]
[344419893,1733439806224,-508.23046046,0.000382,109]
[344419894,1733439806246,-508.23046046,0.000382,109]
[344419895,1733439806267,-508.23046046,0.000382,109]
[344419896,1733439806289,-157.185,0.0003825,120]
[344419897,1733439806312,-214.21871193,0.00038354,120]
[344419898,1733439806334,-151.0,0.00038548,120]
[344419899,1733439806355,-290.0,0.0003889,60]
[344419900,1733439806377,-500.0,0.00039,120]
[344419901,1733439806399,-1000.0,0.00039,120]
[344419902,1733439806421,-40889.25370908,0.00039,30]
[344419903,1733439806473,-3014.49,0.00039,30]
[344419904,1733439806669,-157.161,0.0003945,120]
[344419905,1733439806690,-151.0,0.00039452,120]
[344419906,1733439806713,-96.60209007,0.000398,120]
[344419907,1733439806766,-155.70194437,0.000398,120]
[344419908,1733439806786,-21.4532659,0.000398,120]
[344419911,1733439856754,926.4151187,0.00036876,30]
[344419912,1733439875997,2110.14,0.000308,30]
[344419913,1733439877536,904.35,0.00033,30]
[344419914,1733439879010,706.11,0.000308,30]
[344419916,1733439947417,1000.0,0.00033,120]
[344419919,1733439964383,831.89,0.000329,120]
[344419921,1733439983429,3014.49,0.00031,120]
[344419922,1733439983451,2054.55483641,0.00031,120]
[344419923,1733439983473,3640.04871439,0.00031,120]
[344419927,1733440072690,1783.41723707,0.000308,30]
[344419930,1733440119049,1000.0,0.00030136,120]
[344419931,1733440119315,120.21398237,0.0003041,120]
[344419932,1733440119336,879.78601763,0.0003041,120]
[344419936,1733440206770,208.60222397,0.0003064,30]
[344419937,1733440206795,4.39777603,0.0003064,30]
[344419998,1733440233274,-2072.9452316,0.00024033,10]
[344420001,1733440233285,-193.139642,0.00024276,2]
[344420003,1733440233295,-160.0,0.00024834,2]
[344420004,1733440233305,-650.0212062,0.00025115,2]
[344420006,1733440233315,-1491.0472723,0.00025536,2]
[344420008,1733440233325,-2187.66439484,0.00025588,2]
[344420010,1733440233335,-160.0,0.00025753,2]
[344420012,1733440233345,-300.0,0.00025915,2]
[344420014,1733440233356,-300.0,0.00025915,2]
[344420016,1733440233366,-4645.0,0.00025915,2]
[344420018,1733440233376,-175.22528087,0.00025916,11]
[344420020,1733440233386,-24900.0,0.00025917,2]
[344420022,1733440233396,-160.0,0.00026672,2]
[344420024,1733440233406,-192.0,0.00026871,2]
[344420026,1733440233416,-2041.9374474,0.00027,2]
[344420102,1733440235432,-958.0625526,0.00027,2]
[344420103,1733440235441,-3000.0,0.0002701,2]
[344420104,1733440235451,-500.0,0.00027014,2]
[344420105,1733440235460,-500.0,0.00027014,2]
[344420106,1733440235471,-160.15859866,0.00027014,2]
[344420107,1733440235481,-3000.0,0.0002702,2]
[344420108,1733440235491,-3000.0,0.0002703,2]
[344420109,1733440235504,-3000.0,0.0002704,2]
[344420110,1733440235513,-3000.0,0.0002705,2]
[344420111,1733440235524,-3000.0,0.0002706,2]
[344420112,1733440235533,-163.27750807,0.00027067,2]
[344420113,1733440235543,-500.0,0.00027067,2]
[344420114,1733440235552,-3000.0,0.0002707,2]
[344420115,1733440235562,-500.0,0.0002707,2]
[344420116,1733440235572,-3000.0,0.0002708,2]
[344420117,1733440235582,-3000.0,0.0002709,2]
[344420118,1733440235592,-3000.0,0.000271,2]
[344420119,1733440235601,-3000.0,0.0002711,2]
[344420120,1733440235611,-3000.0,0.0002712,2]
[344420121,1733440235621,-3000.0,0.0002713,2]
[344420122,1733440235631,-501.07031689,0.00027138,2]
[344420123,1733440235640,-500.0,0.00027138,2]
[344420124,1733440235650,-532.14592269,0.00027138,2]
[344420125,1733440235660,-500.0,0.00027138,2]
[344420126,1733440235669,-500.0,0.00027138,2]
[344420127,1733440235680,-500.0,0.00027138,2]
[344420128,1733440235689,-500.0,0.00027138,2]
[344420129,1733440235699,-631.21284838,0.00027138,2]
[344420130,1733440235709,-500.0,0.00027138,2]
[344420131,1733440235718,-401.91741291,0.00027138,2]
[344420132,1733440235728,-459.97661055,0.00027138,2]
[344420133,1733440235738,-500.0,0.00027138,2]
[344420134,1733440235751,-450.8746068,0.00027138,2]
[344420135,1733440235761,-500.0,0.00027138,2]
[344420136,1733440235771,-620.0,0.00027138,2]
[344420137,1733440235780,-500.0,0.00027138,2]
[344420138,1733440235790,-500.0,0.00027138,2]
[344420139,1733440235800,-500.0,0.00027138,2]
[344420140,1733440235810,-500.0,0.00027138,2]
[344420141,1733440235819,-500.0,0.00027138,2]
[344420142,1733440235829,-500.0,0.00027138,2]
[344420143,1733440235839,-500.0,0.00027138,2]
[344420144,1733440235848,-3000.0,0.0002714,2]
[344420145,1733440235858,-3000.0,0.0002715,2]
[344420146,1733440235867,-3000.0,0.0002716,2]
[344420147,1733440235877,-3000.0,0.0002717,2]
[344420148,1733440235886,-3000.0,0.0002718,2]
[344420149,1733440235895,-504.19878046,0.00027183,2]
[344420150,1733440235905,-3000.0,0.0002719,2]
[344420151,1733440235914,-3000.0,0.000272,2]
[344420152,1733440235923,-3000.0,0.0002721,2]
[344420153,1733440235933,-3000.0,0.0002722,2]
[344420154,1733440235942,-3000.0,0.0002723,2]
[344420155,1733440235951,-3000.0,0.0002724,2]
[344420156,1733440235960,-3000.0,0.0002725,2]
[344420157,1733440235970,-3000.0,0.0002726,2]
[344420158,1733440235979,-3000.0,0.0002727,2]
[344420159,1733440235989,-3000.0,0.0002728,2]
[344420160,1733440236004,-3350.720883,0.0002729,2]
[344420161,1733440236014,-152.0,0.00027476,2]
[344420162,1733440236024,-1000.0,0.00027562,5]
[344420163,1733440236034,-160.0,0.00027591,2]
[344420164,1733440236043,-500.0,0.00027906,2]
[344420165,1733440236053,-420.0,0.00028048,2]
[344420166,1733440236063,-1000.0,0.000282,2]
[344420167,1733440236073,-420.0,0.00028506,2]
[344420168,1733440236082,-160.0,0.0002851,2]
[344420169,1733440236092,-151.24261769,0.00028564,5]
[344420170,1733440236101,-156.27922977,0.00029494,2]
[344420171,1733440236116,-151.0,0.00029684,7]
[344420172,1733440236126,-1000.0,0.000298,2]
[344420173,1733440236135,-151.0,0.00029985,7]
[344420174,1733440236144,-157.596,0.0003,2]
[344420175,1733440236154,-9170.07070998,0.0003,2]
[344420176,1733440236164,-1088.0,0.0003,20]
[344420177,1733440236174,-1086.0,0.0003,20]
[344420178,1733440236184,-1086.0,0.0003,20]
[344420179,1733440236193,-1086.0,0.0003,20]
[344420180,1733440236203,-160.0,0.0003,2]
[344420181,1733440236214,-500.0,0.00030136,7]
[344420182,1733440236223,-500.0,0.00030136,7]
[344420183,1733440236233,-500.0,0.00030136,7]
[344420184,1733440236242,-499.13987898,0.00030136,7]
[344420185,1733440236256,-585.60411134,0.00030136,7]
[344420186,1733440236266,-500.0,0.00030136,7]
[344420187,1733440236275,-306.72602091,0.00030136,7]
[344420188,1733440236284,-502.74216244,0.00030136,7]
[344420189,1733440236294,-502.65357868,0.00030136,7]
[344420190,1733440236304,-504.52567524,0.00030136,7]
[344420191,1733440236313,-500.0,0.00030136,7]
[344420192,1733440236322,-262.70337964,0.00030136,7]
[344420193,1733440236331,-538.6132221,0.00030136,7]
[344420194,1733440236340,-500.0,0.00030136,7]
[344420195,1733440236349,-500.0,0.00030136,7]
[344420196,1733440236358,-224.24818225,0.00030136,7]
[344420197,1733440236367,-500.0,0.00030136,7]
[344420198,1733440236376,-500.0,0.00030136,7]
[344420199,1733440236385,-500.0,0.00030136,7]
[344420200,1733440236394,-500.0,0.00030136,7]
[344420201,1733440236403,-500.0,0.00030136,7]
[344420202,1733440236412,-500.0,0.00030136,7]
[344420203,1733440236421,-599.93470739,0.00030136,7]
[344420204,1733440236431,-500.0,0.00030136,7]
[344420205,1733440236440,-168.49,0.00030136,7]
[344420206,1733440236449,-507.76038348,0.00030136,7]
[344420207,1733440236462,-500.0,0.00030136,7]
[344420208,1733440236477,-500.0,0.00030136,7]
[344420209,1733440236489,-151.51864895,0.00030136,7]
[344420210,1733440236504,-500.0,0.00030136,7]
[344420211,1733440236515,-500.0,0.00030136,7]
[344420212,1733440236525,-500.0,0.00030136,7]
[344420213,1733440236536,-505.61817188,0.00030136,7]
[344420214,1733440236546,-500.0,0.00030136,7]
[344420215,1733440236558,-500.0,0.00030136,7]
[344420216,1733440236570,-500.0,0.00030136,7]
[344420217,1733440236581,-500.0,0.00030136,7]
[344420218,1733440236592,-309.71505697,0.00030136,7]
[344420219,1733440236604,-500.0,0.00030136,7]
[344420220,1733440236615,-500.0,0.00030136,7]
[344420221,1733440236627,-500.0,0.00030136,7]
[344420222,1733440236637,-500.0,0.00030136,7]
[344420223,1733440236649,-500.0,0.00030136,7]
[344420224,1733440236660,-500.0,0.00030136,7]
[344420225,1733440236672,-500.0,0.00030136,7]
[344420226,1733440236683,-500.0,0.00030136,7]
[344420227,1733440236694,-500.0,0.00030136,7]
[344420228,1733440236705,-500.0,0.00030136,7]
[344420229,1733440236715,-500.0,0.00030136,7]
[344420230,1733440236725,-500.0,0.00030136,2]
[344420231,1733440236735,-506.32356107,0.00030136,2]
[344420232,1733440236747,-500.0,0.00030136,7]
[344420233,1733440236763,-500.0,0.00030136,7]
[344420234,1733440236775,-417.04780246,0.00030136,7]
[344420235,1733440236787,-500.0,0.00030136,7]
[344420236,1733440236799,-403.67987641,0.00030136,7]
[344420237,1733440236810,-500.0,0.00030136,7]
[344420238,1733440236822,-188.75762856,0.00030136,7]
[344420239,1733440236834,-500.0,0.00030136,7]
[344420240,1733440236846,-500.0,0.00030136,7]
[344420241,1733440236858,-500.0,0.00030136,7]
[344420242,1733440236870,-500.0,0.00030136,7]
[344420243,1733440236882,-500.0,0.00030136,7]
[344420244,1733440236894,-500.0,0.00030136,7]
[344420245,1733440236906,-500.0,0.00030136,7]
[344420246,1733440236917,-500.0,0.00030136,7]
[344420247,1733440236929,-500.0,0.00030136,7]
[344420248,1733440236941,-500.0,0.00030136,7]
[344420249,1733440236954,-500.0,0.00030136,7]
[344420250,1733440236965,-500.0,0.00030136,7]
[344420251,1733440236977,-500.0,0.00030136,7]
[344420252,1733440236989,-535.91272939,0.00030136,7]
[344420253,1733440237005,-360.96472855,0.00030136,7]
[344420254,1733440237017,-500.0,0.00030136,7]
[344420255,1733440237029,-500.0,0.00030136,7]
[344420256,1733440237040,-500.0,0.00030136,7]
[344420257,1733440237051,-319.18,0.00030136,7]
[344420258,1733440237063,-537.31,0.00030136,7]
[344420259,1733440237074,-500.0,0.00030136,7]
[344420260,1733440237085,-500.0,0.00030136,7]
[344420261,1733440237095,-500.0,0.00030136,7]
[344420262,1733440237107,-500.0,0.00030136,7]
[344420263,1733440237121,-500.0,0.00030136,7]
[344420264,1733440237132,-500.0,0.00030136,7]
[344420265,1733440237148,-258.87214258,0.00030136,7]
[344420266,1733440237160,-500.0,0.00030136,7]
[344420267,1733440237172,-500.0,0.00030136,7]
[344420268,1733440237183,-500.0,0.00030136,7]
[344420269,1733440237194,-500.0,0.00030136,7]
[344420270,1733440237205,-519.99524464,0.00030136,7]
[344420271,1733440237216,-500.0,0.00030136,7]
[344420272,1733440237228,-500.0,0.00030136,7]
[344420273,1733440237240,-500.0,0.00030136,7]
[344420274,1733440237256,-500.0,0.00030136,7]
[344420275,1733440237268,-295.37059037,0.00030136,7]
[344420276,1733440237279,-500.0,0.00030136,7]
[344420277,1733440237290,-500.0,0.00030136,7]
[344420278,1733440237300,-502.82845426,0.00030136,7]
[344420279,1733440237310,-500.0,0.00030136,7]
[344420280,1733440237322,-502.63204216,0.00030136,7]
[344420281,1733440237332,-501.06821044,0.00030136,7]
[344420282,1733440237345,-500.0,0.00030136,7]
[344420283,1733440237358,-500.0,0.00030136,7]
[344420284,1733440237371,-500.0,0.00030136,7]
[344420285,1733440237382,-500.0,0.00030136,7]
[344420286,1733440237392,-500.0,0.00030136,7]
[344420287,1733440237402,-500.0,0.00030136,7]
[344420288,1733440237412,-500.0,0.00030136,7]
[344420289,1733440237423,-500.0,0.00030136,7]
[344420290,1733440237433,-500.0,0.00030136,7]
[344420291,1733440237444,-502.17706118,0.00030136,7]
[344420292,1733440237455,-500.0,0.00030136,7]
[344420293,1733440237466,-500.0,0.00030136,7]
[344420294,1733440237478,-500.0,0.00030136,7]
[344420295,1733440237488,-500.0,0.00030136,7]
[344420296,1733440237502,-500.0,0.00030136,7]
[344420297,1733440237513,-500.0,0.00030136,7]
[344420298,1733440237523,-264.21643214,0.00030136,7]
[344420299,1733440237534,-500.0,0.00030136,7]
[344420300,1733440237544,-500.0,0.00030136,7]
[344420301,1733440237555,-500.0,0.00030136,7]
[344420302,1733440237566,-500.0,0.00030136,7]
[344420303,1733440237577,-500.0,0.00030136,7]
[344420304,1733440237587,-500.0,0.00030136,7]
[344420305,1733440237598,-500.0,0.00030136,7]
[344420306,1733440237608,-500.0,0.00030136,7]
[344420307,1733440237619,-500.0,0.00030136,7]
[344420308,1733440237630,-500.0,0.00030136,7]
[344420309,1733440237640,-628.34,0.00030136,7]
[344420310,1733440237652,-500.0,0.00030136,7]
[344420311,1733440237663,-500.0,0.00030136,7]
[344420312,1733440237674,-500.0,0.00030136,7]
[344420313,1733440237685,-500.0,0.00030136,7]
[344420314,1733440237697,-500.0,0.00030136,7]
[344420315,1733440237707,-500.0,0.00030136,7]
[344420316,1733440237718,-500.0,0.00030136,7]
[344420317,1733440237838,-500.0,0.00030136,7]
[344420318,1733440237850,-500.0,0.00030136,7]
[344420319,1733440237861,-500.0,0.00030136,7]
[344420320,1733440237872,-500.0,0.00030136,7]
[344420321,1733440237884,-506.74664033,0.00030136,7]
[344420322,1733440237895,-500.0,0.00030136,7]
[344420323,1733440237907,-553.974383,0.00030136,7]
[344420324,1733440237918,-500.0,0.00030136,7]
[344420325,1733440237929,-500.0,0.00030136,7]
[344420326,1733440237940,-500.0,0.00030136,7]
[344420327,1733440237951,-500.0,0.00030136,7]
[344420328,1733440237962,-500.0,0.00030136,7]
[344420329,1733440237973,-500.0,0.00030136,7]
[344420330,1733440237983,-500.0,0.00030136,7]
[344420331,1733440237994,-500.0,0.00030136,7]
[344420332,1733440238005,-609.45747694,0.00030136,7]
[344420333,1733440238016,-500.0,0.00030136,7]
[344420334,1733440238026,-500.0,0.00030136,7]
[344420335,1733440238037,-500.0,0.00030136,7]
[344420336,1733440238047,-500.0,0.00030136,7]
[344420337,1733440238057,-576.83,0.00030136,7]
[344420338,1733440238067,-500.0,0.00030136,7]
[344420339,1733440238077,-502.71342524,0.00030136,7]
[344420340,1733440238087,-500.0,0.00030136,7]
[344420341,1733440238099,-500.0,0.00030136,7]